[Event "27th 4NCL Congress Open 2022"]
[Site "Harrogate"]
[Date "2022.01.22"]
[Round "3.14"]
[White "Lampard, Alice"]
[Black "Gomez Torres, Richard Daniel"]
[Result "0-1"]
[ECO "E26"]
[WhiteElo "1754"]
[BlackElo "2209"]
[Annotator "ChessBase"]
[PlyCount "108"]
[EventDate "2022.01.21"]
[EventType "swiss"]
[EventCountry "ENG"]
[SourceTitle "playchess.com"]
[Source "ChessBase"]
[SourceQuality "1"]
[TimeControl "5400+30"]

1. d4 {[%emt 0:00:03]} Nf6 {[%emt 0:00:07]} 2. c4 {[%emt 0:00:04]} e6 {[%emt 0:00:08]} 3. Nc3 {[%emt 0:00:06]} Bb4 {[%emt 0:00:10]} 4. Qc2 {[%emt 0:00:05]} O-O {[%emt 0:00:22]} 5. Nf3 {[%emt 0:01:54]} c5 {[%emt 0:00:49]} 6. a3 {[%emt 0:03:15]} Bxc3+ {[%emt 0:00:34]} 7. bxc3 {[%emt 0:00:12]} Nc6 {[%emt 0:07:21]} 8. e3 {[%emt 0:04:37]} b6 {[%emt 0:02:53]} 9. Be2 {[%emt 0:00:27]} d6 {[%emt 0:04:27]} 10. O-O {[%emt 0:00:34]} Qc7 {[%emt 0:02:35]} 11. Rd1 {[%emt 0:02:37]} Ba6 {[%emt 0:02:38]} 12. Nd2 {[%emt 0:05:22]} Rac8 {[%emt 0:01:38]} 13. Nb3 {[%emt 0:01:28]} Ne7 {[%emt 0:11:38]} 14. Nd2 {[%emt 0:05:33]} cxd4 {[%emt 0:05:58]} 15. cxd4 {[%emt 0:00:31]} d5 {[%emt 0:00:04]} 16. a4 {[%emt 0:09:14]} dxc4 {[%emt 0:16:06]} 17. Ba3 {[%emt 0:03:04]} Rfe8 {[%emt 0:00:08]} 18. Rac1 {[%emt 0:01:20]} Nc6 {[%emt 0:03:41]} 19. Bxc4 {[%emt 0:03:24]} Na5 {[%emt 0:02:31]} 20. Bd3 {[%emt 0:03:31]} Qd7 {[%emt 0:01:08]} 21. Qb1 {[%emt 0:02:09]} Bxd3 {[%emt 0:00:09]} 22. Qxd3 {[%emt 0:00:23]} Qxa4 {[%emt 0:00:03]} 23. Ra1 {[%emt 0:03:59]} Qd7 {[%emt 0:03:50]} 24. Qa6 {[%emt 0:11:17]} Rc7 {[%emt 0:02:54]} 25. h3 {[%emt 0:03:06]} Qc8 {[%emt 0:01:31]} 26. Qd3 {[%emt 0:01:03]} Qb7 {[%emt 0:03:44]} 27. Bd6 {[%emt 0:02:22]} Rcc8 {[%emt 0:01:36]} 28. Rdb1 {[%emt 0:03:45]} Nc6 {[%emt 0:00:15]} 29. Qa3 {[%emt 0:03:28]} Ra8 {[%emt 0:04:14]} 30. Nc4 {[%emt 0:01:58]} Rec8 {[%emt 0:00:56]} 31. Qd3 {[%emt 0:06:04]} b5 {[%emt 0:02:25]} 32. Ne5 {[%emt 0:02:19]} a6 {[%emt 0:00:15]} 33. Rb2 {[%emt 0:02:36]} Nxe5 {[%emt 0:02:56]} 34. dxe5 {[%emt 0:01:24]} Nd7 {[%emt 0:00:24]} 35. Rc2 {[%emt 0:02:55]} Nb6 {[%emt 0:00:37]} 36. Rb1 {[%emt 0:01:29]} Rxc2 {[%emt 0:00:17]} 37. Qxc2 {[%emt 0:00:10]} Rc8 {[%emt 0:00:05]} 38. Qa2 {[%emt 0:01:05]} Nc4 {[%emt 0:00:30]} 39. Rd1 {[%emt 0:00:35]} h6 {[%emt 0:01:24]} 40. Ra1 {[%emt 0:01:24]} Rc6 {[%emt 0:02:18]} 41. Bb4 {[%emt 0:02:14]} a5 {[%emt 0:04:06]} 42. Be1 {[%emt 0:00:33]} b4 {[%emt 0:01:25]} 43. Rd1 {[%emt 0:01:15]} Qb5 {[%emt 0:01:30]} 44. Qb1 {[%emt 0:01:38]} Rc8 {[%emt 0:00:21]} 45. Rc1 {[%emt 0:01:47]} b3 {[%emt 0:01:10]} 46. Bxa5 {[%emt 0:00:59]} b2 {[%emt 0:00:47]} 47. Rc2 {[%emt 0:01:14]} Qxa5 {[%emt 0:00:19]} 48. Rxc4 {[%emt 0:00:55]} Rxc4 {[%emt 0:00:13]} 49. Qxb2 {[%emt 0:00:09]} Qc3 {[%emt 0:00:59]} 50. Qb8+ {[%emt 0:00:18]} Kh7 {[%emt 0:00:29]} 51. Qb1+ {[%emt 0:00:25]} Qc2 {[%emt 0:00:04]} 52. Qb7 {[%emt 0:00:15]} Rc7 {[%emt 0:00:29]} 53. Qf3 {[%emt 0:00:12]} Qb1+ {[%emt 0:01:55]} 54. Kh2 {[%emt 0:00:05]} Qf5 {[%emt 0:00:52]} 0-1

[Event "27th 4NCL Congress Open 2022"]
[Site "Harrogate"]
[Date "2022.01.22"]
[Round "3.15"]
[White "Horspool, Philip J"]
[Black "Wynarczyk, Raymond"]
[Result "1-0"]
[ECO "C41"]
[WhiteElo "2028"]
[BlackElo "1752"]
[Annotator "ChessBase"]
[PlyCount "83"]
[EventDate "2022.01.21"]
[EventType "swiss"]
[EventCountry "ENG"]
[SourceTitle "playchess.com"]
[Source "ChessBase"]
[SourceQuality "1"]
[TimeControl "5400+30"]

1. e4 {[%emt 0:02:28]} e5 {[%emt 0:00:11]} 2. Nf3 {[%emt 0:00:09]} d6 {[%emt 0:00:08]} 3. d4 {[%emt 0:00:14]} exd4 {[%emt 0:00:07]} 4. Qxd4 {[%emt 0:00:22]} a6 {[%emt 0:00:08]} 5. Be3 {[%emt 0:01:46]} Nc6 {[%emt 0:00:54]} 6. Qd2 {[%emt 0:00:12]} Bg4 {[%emt 0:02:35]} 7. Nd4 {[%emt 0:02:00]} Bd7 {[%emt 0:01:25]} 8. Nc3 {[%emt 0:01:49]} Nf6 {[%emt 0:00:38]} 9. Be2 {[%emt 0:01:55]} Be7 {[%emt 0:00:56]} 10. h3 {[%emt 0:01:42]} b5 {[%emt 0:01:02]} 11. a3 {[%emt 0:04:33]} O-O {[%emt 0:02:41]} 12. O-O {[%emt 0:06:08]} Re8 {[%emt 0:01:18]} 13. f4 {[%emt 0:13:05]} Bf8 {[%emt 0:03:48]} 14. Bf3 {[%emt 0:01:00]} Nxd4 {[%emt 0:01:59]} 15. Bxd4 {[%emt 0:00:56]} Rb8 {[%emt 0:01:56]} 16. e5 {[%emt 0:05:40]} c5 {[%emt 0:03:10]} 17. exf6 {[%emt 0:00:57]} cxd4 {[%emt 0:00:14]} 18. Qxd4 {[%emt 0:12:09]} Qxf6 {[%emt 0:01:29]} 19. Qxf6 {[%emt 0:01:16]} gxf6 {[%emt 0:00:09]} 20. Nd5 {[%emt 0:00:43]} Kg7 {[%emt 0:03:29]} 21. Nc7 {[%emt 0:01:25]} Rec8 {[%emt 0:03:22]} 22. Nxa6 {[%emt 0:00:37]} Rb6 {[%emt 0:00:15]} 23. Nb4 {[%emt 0:00:16]} Be6 {[%emt 0:03:15]} 24. c3 {[%emt 0:02:14]} Rd8 {[%emt 0:07:27]} 25. Bd5 {[%emt 0:03:07]} f5 {[%emt 0:09:04]} 26. Rfe1 {[%emt 0:02:54]} Kf6 {[%emt 0:01:19]} 27. Rad1 {[%emt 0:00:45]} Bh6 {[%emt 0:01:24]} 28. g3 {[%emt 0:01:46]} Bf8 {[%emt 0:02:36]} 29. Kf2 {[%emt 0:01:11]} Rc8 {[%emt 0:01:20]} 30. Re2 {[%emt 0:04:56]} Rc5 {[%emt 0:00:58]} 31. Ba2 {[%emt 0:07:26]} Rb7 {[%emt 0:03:37]} 32. Rdd2 {[%emt 0:09:34]} Rd7 {[%emt 0:06:31]} 33. Bd5 {[%emt 0:02:29]} Rd8 {[%emt 0:04:55]} 34. Rd1 {[%emt 0:01:13]} Rdc8 {[%emt 0:01:27]} 35. Bf3 {[%emt 0:01:59]} Rd8 {[%emt 0:05:24]} 36. Nd5+ {[%emt 0:01:06]} Kg6 {[%emt 0:03:17]} 37. g4 {[%emt 0:02:47]} fxg4 {[%emt 0:01:12]} 38. hxg4 {[%emt 0:00:06]} Bd7 {[%emt 0:04:23]} 39. Be4+ {[%emt 0:00:06]} f5 {[%emt 0:01:01]} 40. gxf5+ {[%emt 0:00:08]} Bxf5 {[%emt 0:01:20]} 41. Rg1+ {[%emt 0:00:19]} Kf7 {[%emt 0:00:13]} 42. Bxf5 {[%emt 0:00:09]} 1-0

[Event "27th 4NCL Congress Open 2022"]
[Site "Harrogate"]
[Date "2022.01.22"]
[Round "3.16"]
[White "Waterfield, Mark"]
[Black "Wilks, Simon"]
[Result "0-1"]
[ECO "C04"]
[WhiteElo "1724"]
[BlackElo "2092"]
[Annotator "ChessBase"]
[PlyCount "52"]
[EventDate "2022.01.21"]
[EventType "swiss"]
[EventCountry "ENG"]
[SourceTitle "playchess.com"]
[Source "ChessBase"]
[SourceQuality "1"]
[TimeControl "5400+30"]

1. e4 {[%emt 0:02:54]} e6 {[%emt 0:01:41]} 2. d4 {[%emt 0:00:16]} d5 {[%emt 0:00:02]} 3. Nd2 {[%emt 0:00:14]} Nc6 {[%emt 0:00:52]} 4. Ngf3 {[%emt 0:01:34]} Nf6 {[%emt 0:00:15]} 5. e5 {[%emt 0:00:12]} Nd7 {[%emt 0:00:04]} 6. Bd3 {[%emt 0:00:32]} f6 {[%emt 0:02:05]} 7. exf6 {[%emt 0:04:22]} Qxf6 {[%emt 0:01:04]} 8. c3 {[%emt 0:04:17]} Bd6 {[%emt 0:01:22]} 9. Nf1 {[%emt 0:04:58]} e5 {[%emt 0:08:36]} 10. dxe5 {[%emt 0:00:09]} Ncxe5 {[%emt 0:01:44]} 11. Be2 {[%emt 0:01:10]} c6 {[%emt 0:01:19]} 12. Ng3 {[%emt 0:01:00]} O-O {[%emt 0:02:37]} 13. O-O {[%emt 0:00:58]} Nxf3+ {[%emt 0:05:07]} 14. Bxf3 {[%emt 0:00:18]} Ne5 {[%emt 0:01:28]} 15. Be2 {[%emt 0:01:37]} Qh4 {[%emt 0:03:41]} 16. h3 {[%emt 0:06:42]} Bc5 {[%emt 0:02:53]} 17. Nh1 {[%emt 0:02:16]} Bd7 {[%emt 0:07:40]} 18. Qd2 {[%emt 0:03:33]} h6 {[%emt 0:03:09]} 19. b3 {[%emt 0:03:47]} Rf6 {[%emt 0:07:04]} 20. c4 {[%emt 0:05:24]} Bxh3 {[%emt 0:24:53]} 21. gxh3 {[%emt 0:30:38]} Rg6+ {[%emt 0:00:42]} 22. Kh2 {[%emt 0:00:34]} Nf3+ {[%emt 0:01:51]} 23. Bxf3 {[%emt 0:01:28]} Bd6+ {[%emt 0:00:06]} 24. Ng3 {[%emt 0:01:35]} Bxg3+ {[%emt 0:00:20]} 25. fxg3 {[%emt 0:00:29]} Qxg3+ {[%emt 0:00:09]} 26. Kh1 {[%emt 0:00:43]} Qxh3+ {[%emt 0:00:11]} 0-1

[Event "27th 4NCL Congress Open 2022"]
[Site "Harrogate"]
[Date "2022.01.22"]
[Round "3.17"]
[White "Sedykh, Mikhail"]
[Black "Hepworth, Peter"]
[Result "1-0"]
[ECO "D36"]
[WhiteElo "2122"]
[BlackElo "2007"]
[Annotator "ChessBase"]
[PlyCount "147"]
[EventDate "2022.01.21"]
[EventType "swiss"]
[EventCountry "ENG"]
[SourceTitle "playchess.com"]
[Source "ChessBase"]
[SourceQuality "1"]
[TimeControl "5400+30"]

1. d4 {[%emt 0:01:00]} d5 {[%emt 0:03:52]} 2. c4 {[%emt 0:01:00]} e6 {[%emt 0:01:14]} 3. Nc3 {[%emt 0:00:04]} Nf6 {[%emt 0:00:18]} 4. cxd5 {[%emt 0:00:04]} exd5 {[%emt 0:00:07]} 5. Bg5 {[%emt 0:00:05]} c6 {[%emt 0:00:29]} 6. e3 {[%emt 0:00:07]} Be7 {[%emt 0:00:59]} 7. Qc2 {[%emt 0:00:47]} O-O {[%emt 0:04:05]} 8. Bd3 {[%emt 0:00:06]} h6 {[%emt 0:00:33]} 9. Bh4 {[%emt 0:00:48]} b5 {[%emt 0:01:31]} 10. Nf3 {[%emt 0:04:04]} a5 {[%emt 0:03:06]} 11. O-O {[%emt 0:02:16]} Nfd7 {[%emt 0:06:09]} 12. Bg3 {[%emt 0:01:50]} Na6 {[%emt 0:01:20]} 13. a3 {[%emt 0:12:49]} b4 {[%emt 0:05:03]} 14. Ne2 {[%emt 0:10:07]} c5 {[%emt 0:01:36]} 15. dxc5 {[%emt 0:07:18]} Ndxc5 {[%emt 0:00:31]} 16. Bh7+ {[%emt 0:04:36]} Kh8 {[%emt 0:00:07]} 17. Bf5 {[%emt 0:03:01]} b3 {[%emt 0:07:11]} 18. Qb1 {[%emt 0:00:03]} Bf6 {[%emt 0:06:03]} 19. Ned4 {[%emt 0:01:29]} Bxf5 {[%emt 0:02:49]} 20. Qxf5 {[%emt 0:00:29]} Ne4 {[%emt 0:00:46]} 21. Be5 {[%emt 0:02:58]} Nac5 {[%emt 0:05:52]} 22. Rfd1 {[%emt 0:02:08]} Ra6 {[%emt 0:02:32]} 23. Ne2 {[%emt 0:06:20]} Na4 {[%emt 0:13:36]} 24. Nf4 {[%emt 0:05:44]} Qc8 {[%emt 0:11:18]} 25. Qxc8 {[%emt 0:05:19]} Rxc8 {[%emt 0:00:06]} 26. Nxd5 {[%emt 0:04:16]} Re6 {[%emt 0:10:17]} 27. Bxf6 {[%emt 0:08:42]} Nxf6 {[%emt 0:00:22]} 28. Nxf6 {[%emt 0:03:24]} Rxf6 {[%emt 0:00:16]} 29. Rac1 {[%emt 0:06:33]} Rfc6 {[%emt 0:00:59]} 30. Rxc6 {[%emt 0:00:06]} Rxc6 {[%emt 0:00:06]} 31. Nd4 {[%emt 0:00:48]} Nxb2 {[%emt 0:01:31]} 32. Rb1 {[%emt 0:00:05]} Rc3 {[%emt 0:00:17]} 33. g3 {[%emt 0:02:21]} Nc4 {[%emt 0:00:21]} 34. Rxb3 {[%emt 0:00:31]} Rxb3 {[%emt 0:00:06]} 35. Nxb3 {[%emt 0:00:02]} Nxa3 {[%emt 0:00:07]} 36. Nxa5 {[%emt 0:00:03]} Nb5 {[%emt 0:00:18]} 37. e4 {[%emt 0:01:08]} g6 {[%emt 0:00:11]} 38. Nc4 {[%emt 0:00:28]} Kg7 {[%emt 0:00:12]} 39. f4 {[%emt 0:00:53]} Nc3 {[%emt 0:00:42]} 40. Nd2 {[%emt 0:00:19]} g5 {[%emt 0:00:44]} 41. Kf2 {[%emt 0:01:52]} Nb5 {[%emt 0:00:39]} 42. Kf3 {[%emt 0:01:32]} Nd4+ {[%emt 0:00:38]} 43. Kg4 {[%emt 0:00:53]} Kg6 {[%emt 0:01:11]} 44. f5+ {[%emt 0:00:36]} Kf6 {[%emt 0:00:06]} 45. Nc4 {[%emt 0:00:36]} Kg7 {[%emt 0:01:02]} 46. Nd6 {[%emt 0:01:50]} Kf6 {[%emt 0:00:41]} 47. Nc4 {[%emt 0:00:20]} Kg7 {[%emt 0:00:15]} 48. Ne5 {[%emt 0:01:16]} Kf6 {[%emt 0:00:33]} 49. Nd7+ {[%emt 0:00:10]} Ke7 {[%emt 0:00:51]} 50. Nc5 {[%emt 0:00:08]} Kf6 {[%emt 0:00:17]} 51. Nd3 {[%emt 0:00:23]} Kg7 {[%emt 0:00:24]} 52. Kh3 {[%emt 0:01:33]} h5 {[%emt 0:02:19]} 53. Kg2 {[%emt 0:00:16]} Nc2 {[%emt 0:00:26]} 54. Kf3 {[%emt 0:00:21]} Kf6 {[%emt 0:00:04]} 55. Ke2 {[%emt 0:00:48]} g4 {[%emt 0:01:24]} 56. Kd2 {[%emt 0:00:22]} Nd4 {[%emt 0:00:05]} 57. Ke3 {[%emt 0:00:19]} Nf3 {[%emt 0:00:47]} 58. h3 {[%emt 0:00:20]} Kg5 {[%emt 0:00:13]} 59. h4+ {[%emt 0:01:23]} Kh6 {[%emt 0:01:52]} 60. e5 {[%emt 0:00:21]} Kg7 {[%emt 0:01:05]} 61. Kf4 {[%emt 0:00:09]} Kh6 {[%emt 0:00:12]} 62. e6 {[%emt 0:00:58]} fxe6 {[%emt 0:02:48]} 63. fxe6 {[%emt 0:00:02]} Kg7 {[%emt 0:00:23]} 64. Ne5 {[%emt 0:00:10]} Nd4 {[%emt 0:02:17]} 65. e7 {[%emt 0:00:38]} Ne6+ {[%emt 0:00:05]} 66. Kf5 {[%emt 0:00:05]} Nc7 {[%emt 0:00:07]} 67. Kg5 {[%emt 0:00:20]} Ne8 {[%emt 0:00:52]} 68. Kxh5 {[%emt 0:00:33]} Kf6 {[%emt 0:00:05]} 69. Nxg4+ {[%emt 0:00:25]} Kxe7 {[%emt 0:00:15]} 70. Kg6 {[%emt 0:00:17]} Kf8 {[%emt 0:00:04]} 71. h5 {[%emt 0:00:22]} Ng7 {[%emt 0:00:30]} 72. h6 {[%emt 0:00:16]} Kg8 {[%emt 0:00:04]} 73. Nf6+ {[%emt 0:00:04]} Kh8 {[%emt 0:00:06]} 74. hxg7# {[%emt 0:00:05]} 1-0

[Event "27th 4NCL Congress Open 2022"]
[Site "Harrogate"]
[Date "2022.01.22"]
[Round "3.18"]
[White "Longson, Sarah N"]
[Black "Varley, Joe"]
[Result "1-0"]
[ECO "C54"]
[WhiteElo "2036"]
[BlackElo "1832"]
[Annotator "NA"]
[PlyCount "125"]
[EventDate "2022.01.21"]
[EventType "swiss"]
[EventCountry "ENG"]
[SourceTitle "playchess.com"]
[Source "ChessBase"]
[SourceQuality "1"]
[TimeControl "5400+30"]

1. e4 {[%emt 0:00:01]} e5 {[%emt 0:00:19]} 2. Nf3 {[%emt 0:00:04]} Nc6 {[%emt 0:00:09]} 3. Bc4 {[%emt 0:00:02]} Bc5 {[%emt 0:00:07]} 4. O-O {[%emt 0:00:16]} Nf6 {[%emt 0:00:07]} 5. c3 {[%emt 0:00:27]} d6 {[%emt 0:02:34]} 6. d3 {[%emt 0:00:13]} O-O {[%emt 0:01:24]} 7. Nbd2 {[%emt 0:00:43]} a5 {[%emt 0:00:08]} 8. Bb3 {[%emt 0:00:23]} h6 {[%emt 0:12:01]} 9. Re1 {[%emt 0:01:11]} Bd7 {[%emt 0:02:45]} 10. Nf1 {[%emt 0:01:53]} Ne7 {[%emt 0:04:19]} 11. h3 {[%emt 0:08:54]} Ng6 {[%emt 0:02:08]} 12. d4 {[%emt 0:04:52]} Bb6 {[%emt 0:04:00]} (12... a4 $11) 13. Ng3 {[%emt 0:02:33]} Re8 {[%emt 0:00:37]} 14. Be3 {[%emt 0:21:23]} exd4 {[%emt 0:14:01]} 15. Nxd4 {[%emt 0:02:20]} Ne5 {[%emt 0:09:25]} 16. f4 {[%emt 0:08:41]} Ng6 {[%emt 0:01:20]} 17. Qd3 {[%emt 0:09:08]} a4 {[%emt 0:11:34]} 18. Bc4 {[%emt 0:11:01]} ({White should play} 18. Bc2 $11) 18... Nf8 {[%emt 0:05:28]} 19. f5 {[%emt 0:03:12]} Qe7 {[%emt 0:04:23]} 20. Bf2 {[%emt 0:01:40]} c6 {[%emt 0:01:57]} 21. Qf3 {[%emt 0:04:24]} N8h7 {[%emt 0:03:08]} 22. h4 {[%emt 0:00:41]} Rad8 {[%emt 0:02:48]} 23. Bd3 {[%emt 0:01:36]} Bc8 {[%emt 0:00:45]} 24. Bc2 {[%emt 0:01:34]} Nd7 {[%emt 0:03:26]} 25. Nh5 {[%emt 0:00:32]} Nhf6 {[%emt 0:03:12]} 26. Nxf6+ {[%emt 0:02:11]} Qxf6 {[%emt 0:00:17]} 27. Bxa4 {[%emt 0:00:46]} Ne5 {[%emt 0:00:28]} 28. Qg3 {[%emt 0:00:56]} Bc7 {[%emt 0:00:42]} 29. Rad1 {[%emt 0:02:44]} h5 {[%emt 0:01:37]} 30. Be3 {[%emt 0:00:45]} Qe7 {[%emt 0:02:23]} 31. Bg5 {[%emt 0:02:34]} f6 {[%emt 0:00:07]} 32. Bb3+ {[%emt 0:00:24]} d5 {[%emt 0:00:44]} 33. Bf4 {[%emt 0:00:24]} Kf8 {[%emt 0:01:16]} 34. exd5 {[%emt 0:00:57]} cxd5 {[%emt 0:00:21]} 35. Kh1 {[%emt 0:01:10]} Qf7 {[%emt 0:01:20]} 36. Ba4 {[%emt 0:02:01]} Re7 {[%emt 0:01:05]} 37. Bb3 {[%emt 0:02:29]} Rde8 {[%emt 0:00:39]} 38. Nb5 {[%emt 0:01:38]} Bxf5 {[%emt 0:00:56]} 39. Nxc7 {[%emt 0:00:34]} Rxc7 {[%emt 0:00:21]} 40. Bxd5 {[%emt 0:00:15]} Qg6 {[%emt 0:01:05]} 41. Qxg6 {[%emt 0:00:37]} Bxg6 {[%emt 0:00:15]} 42. Bxe5 {[%emt 0:00:38]} Rxe5 $16 {[%emt 0:00:27]} 43. Rxe5 {[%emt 0:00:15]} fxe5 {[%emt 0:00:09]} 44. Re1 {[%emt 0:01:08]} Re7 {[%emt 0:00:42]} 45. c4 {[%emt 0:00:39]} e4 {[%emt 0:00:27]} 46. Re3 {[%emt 0:00:07]} Ke8 {[%emt 0:01:41]} 47. Kh2 {[%emt 0:00:18]} Kd7 {[%emt 0:00:07]} 48. Bxb7 {[%emt 0:00:12]} Kd6 {[%emt 0:00:11]} 49. Bd5 {[%emt 0:00:17]} Ke5 {[%emt 0:00:29]} 50. Kg3 {[%emt 0:00:23]} Kd4 {[%emt 0:00:08]} 51. Kf2 {[%emt 0:01:00]} Re5 {[%emt 0:01:47]} 52. Ke2 {[%emt 0:00:44]} Bf5 {[%emt 0:00:10]} 53. Kd2 {[%emt 0:00:30]} Bg4 {[%emt 0:00:21]} 54. a4 {[%emt 0:00:25]} Re7 {[%emt 0:00:37]} 55. a5 {[%emt 0:01:18]} Bf5 {[%emt 0:00:06]} 56. a6 {[%emt 0:00:12]} Ra7 {[%emt 0:00:18]} 57. Bb7 {[%emt 0:00:42]} Kxc4 {[%emt 0:00:08]} 58. Bxe4 {[%emt 0:00:18]} Rd7+ {[%emt 0:01:29]} 59. Ke2 {[%emt 0:00:37]} Bg4+ {[%emt 0:00:45]} 60. Bf3 {[%emt 0:00:25]} Bxf3+ {[%emt 0:01:07]} 61. Kxf3 {[%emt 0:00:06]} Rf7+ {[%emt 0:00:50]} 62. Ke4 {[%emt 0:00:49]} Re7+ {[%emt 0:00:41]} 63. Kf4 {[%emt 0:00:07]} 1-0

[Event "27th 4NCL Congress Open 2022"]
[Site "Harrogate"]
[Date "2022.01.22"]
[Round "3.19"]
[White "Bak, Christopher"]
[Black "Hymer, Barry"]
[Result "1-0"]
[ECO "B07"]
[WhiteElo "2022"]
[BlackElo "1896"]
[Annotator "ChessBase"]
[PlyCount "63"]
[EventDate "2022.01.21"]
[EventType "swiss"]
[EventCountry "ENG"]
[SourceTitle "playchess.com"]
[Source "ChessBase"]
[SourceQuality "1"]
[TimeControl "5400+30"]

1. e4 {[%emt 0:00:03]} d6 {[%emt 0:00:08]} 2. d4 {[%emt 0:00:08]} Nf6 {[%emt 0:00:06]} 3. Nc3 {[%emt 0:00:08]} e5 {[%emt 0:00:06]} 4. Nge2 {[%emt 0:00:18]} Be7 {[%emt 0:00:14]} 5. g3 {[%emt 0:00:14]} O-O {[%emt 0:00:51]} 6. Bg2 {[%emt 0:00:06]} c6 {[%emt 0:00:40]} 7. a4 {[%emt 0:00:22]} a5 {[%emt 0:01:36]} 8. O-O {[%emt 0:02:19]} Na6 {[%emt 0:01:39]} 9. h3 {[%emt 0:01:08]} Re8 {[%emt 0:02:00]} 10. Be3 {[%emt 0:12:04]} Nb4 {[%emt 0:05:31]} 11. Kh2 {[%emt 0:12:50]} exd4 {[%emt 0:00:42]} 12. Bxd4 {[%emt 0:01:12]} Be6 {[%emt 0:04:52]} 13. f4 {[%emt 0:05:44]} Nd7 {[%emt 0:06:28]} 14. g4 {[%emt 0:04:12]} Bc4 {[%emt 0:08:51]} 15. Rg1 {[%emt 0:11:27]} Qc7 {[%emt 0:04:04]} 16. Ng3 {[%emt 0:04:52]} Bf8 {[%emt 0:03:37]} 17. Qd2 {[%emt 0:02:33]} Rad8 {[%emt 0:05:16]} 18. Rad1 {[%emt 0:01:26]} f6 {[%emt 0:05:50]} 19. Qf2 {[%emt 0:05:03]} Bf7 {[%emt 0:04:08]} 20. Be3 {[%emt 0:02:55]} d5 {[%emt 0:02:53]} 21. exd5 {[%emt 0:16:05]} Nxc2 {[%emt 0:00:26]} 22. Qxc2 {[%emt 0:00:33]} Rxe3 {[%emt 0:00:07]} 23. Nce2 {[%emt 0:02:16]} Bd6 {[%emt 0:04:18]} 24. dxc6 {[%emt 0:04:14]} Bb3 {[%emt 0:12:54]} 25. Qc1 {[%emt 0:02:24]} Bxf4 {[%emt 0:07:49]} 26. Nxf4 {[%emt 0:00:52]} Qxf4 {[%emt 0:00:06]} 27. Rxd7 {[%emt 0:00:47]} Qxg3+ {[%emt 0:01:04]} 28. Kh1 {[%emt 0:00:03]} Rde8 {[%emt 0:00:41]} 29. c7 {[%emt 0:04:27]} Re1 {[%emt 0:01:24]} 30. Rd8 {[%emt 0:00:46]} Rxc1 {[%emt 0:03:11]} 31. Rxc1 {[%emt 0:00:19]} Kf7 {[%emt 0:03:55]} 32. Rxe8 {[%emt 0:01:13]} 1-0

[Event "27th 4NCL Congress Open 2022"]
[Site "Harrogate"]
[Date "2022.01.22"]
[Round "3.20"]
[White "Sheppard, Derek Alan"]
[Black "Nicholson, Jim W R"]
[Result "1/2-1/2"]
[ECO "D11"]
[WhiteElo "1692"]
[BlackElo "1963"]
[Annotator "ChessBase"]
[PlyCount "62"]
[EventDate "2022.01.21"]
[EventType "swiss"]
[EventCountry "ENG"]
[SourceTitle "playchess.com"]
[Source "ChessBase"]
[SourceQuality "1"]
[TimeControl "5400+30"]

1. d4 {[%emt 0:00:08]} d5 {[%emt 0:00:05]} 2. Nf3 {[%emt 0:00:06]} c6 {[%emt 0:00:17]} 3. e3 {[%emt 0:01:01]} Nf6 {[%emt 0:02:09]} 4. c4 {[%emt 0:00:14]} a6 {[%emt 0:01:56]} 5. a4 {[%emt 0:02:23]} Bf5 {[%emt 0:03:32]} 6. Nc3 {[%emt 0:00:44]} e6 {[%emt 0:01:38]} 7. Bd3 {[%emt 0:01:16]} Bxd3 {[%emt 0:02:02]} 8. Qxd3 {[%emt 0:00:09]} Nbd7 {[%emt 0:01:08]} 9. O-O {[%emt 0:00:45]} Bd6 {[%emt 0:02:07]} 10. e4 {[%emt 0:08:04]} dxe4 {[%emt 0:01:40]} 11. Nxe4 {[%emt 0:00:17]} Nxe4 {[%emt 0:02:28]} 12. Qxe4 {[%emt 0:00:10]} Nf6 {[%emt 0:00:42]} 13. Qe2 {[%emt 0:02:02]} O-O {[%emt 0:03:22]} 14. Rd1 {[%emt 0:01:47]} Qc7 {[%emt 0:07:21]} 15. Ne5 {[%emt 0:09:02]} c5 {[%emt 0:05:32]} 16. Bf4 {[%emt 0:08:46]} Rad8 {[%emt 0:20:56]} 17. Rac1 {[%emt 0:09:47]} Qa5 {[%emt 0:05:06]} 18. b3 {[%emt 0:09:48]} cxd4 {[%emt 0:04:17]} 19. Rxd4 {[%emt 0:02:05]} Bc5 {[%emt 0:03:00]} 20. Rdd1 {[%emt 0:04:05]} Be7 {[%emt 0:16:42]} 21. h3 {[%emt 0:02:32]} h6 {[%emt 0:03:39]} 22. Qf3 {[%emt 0:02:51]} Qb6 {[%emt 0:05:03]} 23. Rxd8 {[%emt 0:06:36]} Rxd8 {[%emt 0:00:50]} 24. Rd1 {[%emt 0:00:19]} Rxd1+ {[%emt 0:00:56]} 25. Qxd1 {[%emt 0:00:08]} Qd8 {[%emt 0:00:19]} 26. Qxd8+ {[%emt 0:00:29]} Bxd8 {[%emt 0:00:23]} 27. Be3 {[%emt 0:04:37]} Bc7 {[%emt 0:01:29]} 28. Nd3 {[%emt 0:00:48]} Nd7 {[%emt 0:00:30]} 29. Nc5 {[%emt 0:00:55]} Nxc5 {[%emt 0:00:07]} 30. Bxc5 {[%emt 0:00:06]} f5 {[%emt 0:00:45]} 31. b4 {[%emt 0:02:27]} Kf7 {[%emt 0:00:19]} 1/2-1/2